bitfinex/quotes_SOLUSD_20260223
["timestamp","ask_amount","ask_price","bid_price","bid_amount"]
[1771853756745,13.89472792,80.788,80.764,1.98489219]
[1771853758645,13.90299624,80.786,80.764,1.98489219]
[1771853760453,1.52852634,80.795,80.765,1.98489219]
[1771853763647,12.37715671,80.794,80.765,1.98489219]
[1771853764343,13.92088873,80.794,80.765,1.98489219]
[1771853765339,1.54742492,80.793,80.765,1.98489219]
[1771853765749,1.54742492,80.793,80.767,1.98489219]
[1771853765943,3.85705275,80.79,80.767,1.98489219]
[1771853766156,1.5510754,80.789,80.767,1.98489219]
[1771853768166,1.55825104,80.787,80.767,1.98489219]
[1771853769425,12.37838239,80.786,80.767,1.98489219]
[1771853769924,13.94364519,80.786,80.767,1.98489219]
[1771853775748,1.58535173,80.815,80.781,1.98489219]
[1771853775933,1.58535173,80.809,80.781,1.98489219]
[1771853777638,1.58856658,80.807,80.781,1.98489219]
[1771853778344,1.59488593,80.789,80.76,1.99654917]
[1771853778542,1.59488593,80.779,80.76,1.99654917]
[1771853780051,13.98370366,80.778,80.76,1.99654917]
[1771853780255,12.3796083,80.778,80.76,1.99654917]
[1771853781458,12.37910318,80.782,80.76,1.99654917]
[1771853783237,1.61299108,80.782,80.76,1.99654917]
[1771853784554,5.47466051,80.78,80.76,1.99654917]
[1771853784753,1.61588847,80.779,80.76,1.99654917]
[1771853786563,12.3796083,80.778,80.76,1.99654917]
[1771853787957,1.62714902,80.777,80.76,1.99654917]
[1771853788344,1.62714902,80.769,80.75,2.60792091]
[1771853788545,1.62714902,80.767,80.751,2.60792091]
[1771853788751,1.62714902,80.767,80.751,1.90556739]
[1771853791063,1.62714902,80.767,80.721,0.70235352]
[1771853791064,1.93349574,80.759,80.731,0.70235352]
[1771853791247,1.93349574,80.759,80.732,0.70235352]
[1771853791562,1.93349574,80.749,80.732,0.70235352]
[1771853793169,1.93349574,80.747,80.732,0.70235352]
[1771853794771,1.93349574,80.747,80.727,1.90556739]
[1771853795285,1.93349574,80.758,80.722,1.90556739]
[1771853795451,3.85877204,80.73,80.71,0.2]
[1771853795656,154.78534366,80.757,80.69,0.2]
[1771853795657,1.93349574,80.719,80.69,0.2]
[1771853795872,3.85877204,80.71,80.69,0.2]
[1771853796176,1.93349574,80.719,80.69,0.2]
[1771853796471,3.85877204,80.72,80.691,12.39284319]
[1771853796770,1.93349574,80.719,80.69,0.2]
[1771853797367,12.38881042,80.718,80.69,12.59305669]
[1771853797547,12.38881042,80.718,80.701,1.90556739]
[1771853802073,12.38794655,80.724,80.701,1.90556739]
[1771853802871,3.85877204,80.72,80.701,1.90556739]
[1771853803873,12.38727579,80.728,80.701,1.90556739]
[1771853804080,1.93349574,80.727,80.703,1.90556739]
[1771853805178,3.69383402,80.754,80.702,12.39126663]
[1771853805179,12.38633874,80.735,80.711,1.90556739]
[1771853805359,5.79226778,80.75,80.721,1.90556739]
[1771853806059,1.93349574,80.755,80.723,1.90556739]
[1771853806268,12.38252083,80.759,80.723,1.90556739]
[1771853806467,1.93349574,80.758,80.723,1.90556739]
[1771853807393,12.38252083,80.759,80.731,1.90556739]
[1771853808484,1.86555847,80.758,80.731,1.90556739]
[1771853809388,12.38282749,80.757,80.731,1.90556739]
[1771853810285,3.85877204,80.75,80.731,1.90556739]
[1771853810490,12.38282749,80.757,80.733,1.92972095]
[1771853810789,1.86555847,80.756,80.733,1.92972095]
[1771853812214,1.86555847,80.749,80.733,1.92972095]
[1771853812388,12.38313417,80.755,80.705,6.2]
[1771853812389,1.86555847,80.739,80.718,1.92972095]
[1771853814191,1.86555847,80.745,80.72,1.92972095]
[1771853815396,3.85877204,80.81,80.802,48.91852294]
[1771853815577,3.85877204,80.81,80.774,1.92972095]
[1771853816090,3.85877204,80.8,80.742,1.92972095]
[1771853816293,3.85877204,80.78,80.755,1.92972095]
[1771853817384,3.85877204,80.78,80.757,1.92972095]
[1771853818290,1.86555847,80.783,80.757,1.92972095]
[1771853818685,3.85877204,80.79,80.757,1.92972095]
[1771853818883,3.85877204,80.79,80.76,3.85877204]
[1771853819082,3.85877204,80.79,80.761,1.92972095]
[1771853819288,3.85877204,80.8,80.761,1.92972095]
[1771853819485,3.85877204,80.8,80.771,1.92972095]
[1771853819684,3.85877204,80.82,80.781,1.92972095]
[1771853820681,1.86555847,80.819,80.781,1.92972095]
[1771853822195,1.86555847,80.819,80.783,1.92972095]
[1771853823391,3.95877204,80.87,80.812,1.92972095]
[1771853823698,3.95877204,80.87,80.831,1.92972095]
[1771853823870,16.32432262,80.87,80.831,1.92972095]
[1771853824075,16.32432262,80.87,80.833,1.92972095]
[1771853825589,1.60643167,80.859,80.833,1.92972095]
[1771853827595,1.55460896,80.858,80.833,1.92972095]
[1771853827977,1.55460896,80.858,80.832,12.37133808]
[1771853829672,1.55460896,80.858,80.82,3.85877204]
[1771853829673,1.48040645,80.839,80.814,12.37397598]
[1771853830691,1.48040645,80.839,80.809,12.37485923]
[1771853831098,1.48040645,80.839,80.809,14.30458018]
[1771853831694,1.48040645,80.839,80.81,1.92972095]
[1771853832500,1.43278287,80.837,80.8,3.85877204]
[1771853832694,1.43278287,80.837,80.801,1.92972095]
[1771853832886,1.40938055,80.835,80.801,1.92972095]
[1771853834601,1.38624702,80.833,80.803,1.92972095]
[1771853836483,1.34077405,80.829,80.803,1.92972095]
[1771853837706,1.27450454,80.828,80.803,1.92972095]
[1771853838201,1.27450454,80.828,80.797,12.37654742]
[1771853838595,1.27450454,80.828,80.797,14.04576237]
[1771853838796,1.27450454,80.828,80.798,1.77512661]
[1771853840199,43.30236183,80.827,80.792,6.2]
[1771853840401,1.21049241,80.819,80.792,18.57738368]
[1771853840785,1.21049241,80.819,80.793,1.77512661]
[1771853841389,1.18964331,80.818,80.793,1.77512661]
[1771853842236,1.18964331,80.818,80.794,12.37715671]
[1771853842796,1.18964331,80.818,80.795,1.77512661]
[1771853845687,1.18964331,80.818,80.8,3.85441332]
[1771853847706,1.05025298,80.816,80.779,3.69383402]
[1771853847911,1.05025298,80.816,80.78,9.32337395]
[1771853848094,1.05025298,80.816,80.781,1.77512661]
[1771853849595,1.03124439,80.814,80.782,12.37899532]
[1771853849799,1.03124439,80.814,80.783,1.77512661]
[1771853851019,1.03124439,80.814,80.78,3.69383402]
[1771853851218,3.85441332,80.8,80.763,12.38176804]
[1771853851526,49.48940502,80.826,80.757,1.77512661]
[1771853851697,3.85441332,80.78,80.756,12.38298083]
[1771853852021,3.85441332,80.79,80.757,1.77512661]
[1771853852315,3.69383402,80.831,80.757,1.77512661]
[1771853852504,3.85441332,80.79,80.757,1.77512661]
[1771853852818,3.85441332,80.78,80.75,1.77512661]
[1771853853914,12.37945505,80.779,80.751,12.38374756]
[1771853854207,3.85441332,80.78,80.752,1.77512661]
[1771853854418,3.85441332,80.8,80.761,1.77512661]
[1771853854797,3.85441332,80.79,80.761,1.77512661]
[1771853855022,3.85441332,80.8,80.761,1.77512661]
[1771853855921,3.85441332,80.81,80.771,1.77512661]
[1771853856093,12.37485923,80.809,80.773,1.77512661]
[1771853856621,12.37485923,80.809,80.781,1.77512661]
[1771853858421,12.37485923,80.809,80.782,12.37899532]
[1771853860520,3.85441332,80.8,80.782,12.37899532]
[1771853860707,3.85441332,80.81,80.783,1.77512661]
[1771853863105,3.85441332,80.81,80.785,1.77512661]
[1771853863309,12.37401483,80.815,80.785,1.77512661]
[1771853863611,3.85441332,80.82,80.785,1.77512661]
[1771853863913,12.37179725,80.829,80.791,1.77512661]
[1771853864694,3.85441332,80.82,80.791,1.77512661]
[1771853865708,3.8554749,80.82,80.793,1.77512661]
[1771853866200,12.37332805,80.819,80.793,1.77512661]
[1771853867418,3.8554749,80.82,80.793,1.77512661]
[1771853867723,16.22868301,80.82,80.795,1.65159445]
[1771853868017,3.8554749,80.82,80.795,1.65159445]
[1771853868214,12.37332805,80.819,80.795,1.65159445]
[1771853869924,3.8554749,80.82,80.797,1.65159445]
[1771853872213,12.37332805,80.819,80.797,1.65159445]
[1771853873023,12.37332805,80.819,80.799,1.65159445]
[1771853873324,3.8554749,80.84,80.799,1.65159445]
[1771853873524,3.8554749,80.84,80.801,1.65159445]
[1771853873725,3.8554749,80.85,80.801,1.65159445]
[1771853874104,16.22418699,80.85,80.803,43.31522343]
[1771853874321,16.22418699,80.85,80.804,1.65159445]
[1771853875520,12.36871209,80.85,80.804,1.65159445]
[1771853876016,12.36736006,80.858,80.804,1.65159445]
[1771853876708,12.36736006,80.858,80.809,1.65159445]
[1771853877807,3.8554749,80.85,80.811,1.65159445]
[1771853882008,3.8554749,80.84,80.811,1.65159445]
[1771853882326,3.8554749,80.84,80.812,12.37439984]
[1771853882626,3.8554749,80.84,80.813,1.65159445]
[1771853883209,12.36873678,80.849,80.813,1.65159445]
[1771853885409,12.36873678,80.849,80.812,43.31039944]
[1771853885410,12.36873678,80.849,80.815,1.65159445]
[1771853888736,43.29057873,80.849,80.816,12.37378736]
[1771853889033,43.29057873,80.849,80.817,1.65159445]
[1771853890615,12.36873678,80.849,80.817,1.65159445]
[1771853891439,12.36873678,80.849,80.819,1.65159445]
[1771853893428,3.8554749,80.83,80.766,61.90723819]
[1771853893734,0.98961959,80.833,80.766,111.44230491]
[1771853894523,0.98961959,80.833,80.769,3.69383402]
[1771853894836,0.96590476,80.839,80.769,3.69383402]
[1771853895538,3.8554749,80.84,80.775,1.50184311]
[1771853895539,0.96590476,80.837,80.775,1.50184311]
[1771853897032,12.37072591,80.836,80.78,1.50184311]
[1771853898055,0.92008767,80.835,80.78,1.50184311]
[1771853900036,0.88121368,80.829,80.782,1.16084128]
[1771853900240,0.88121368,80.819,80.782,1.16084128]
[1771853901438,0.8685522,80.809,80.782,1.16084128]
[1771853903258,0.8685522,80.809,80.784,1.16084128]
[1771853903458,12.37501237,80.808,80.784,1.16084128]
[1771853903625,0.84366388,80.807,80.784,1.16084128]
[1771853903828,0.8314337,80.799,80.779,1.16084128]
[1771853905951,0.80739316,80.797,80.779,1.16084128]
[1771853906137,0.80739316,80.797,80.774,1.16084128]
[1771853906846,0.80739316,80.797,80.765,1.16084128]
[1771853907055,0.79557959,80.789,80.765,1.16084128]
[1771853908538,0.78390171,80.787,80.765,1.16084128]
[1771853914666,12.37838239,80.786,80.765,1.16084128]
[1771853917247,0.6846555,80.788,80.765,1.16084128]
[1771853920466,13.03203037,80.787,80.765,1.16084128]
[1771853920848,0.64375178,80.786,80.765,1.16084128]
[1771853922069,13.01204696,80.787,80.765,1.16084128]
[1771853922367,43.95761988,80.787,80.765,1.16084128]
[1771853923469,0.6239979,80.779,80.755,1.16084128]
[1771853923674,3.85609128,80.76,80.735,1.16084128]
[1771853924168,3.85609128,80.77,80.735,1.16084128]
[1771853924360,3.85609128,80.78,80.735,1.16084128]
[1771853925268,0.6046952,80.769,80.737,1.16084128]
[1771853925463,3.85609128,80.77,80.737,1.16084128]
[1771853927279,3.85609128,80.77,80.739,1.16084128]
[1771853927467,12.38020654,80.775,80.739,1.16084128]
[1771853928972,3.85609128,80.76,80.739,1.16084128]
[1771853929355,3.85609128,80.76,80.741,1.10813458]
[1771853930071,3.85609128,80.76,80.743,1.10813458]
[1771853930384,0.55834532,80.769,80.743,1.10813458]
[1771853930583,12.93933725,80.769,80.743,1.10813458]
[1771853931586,0.54054212,80.768,80.743,1.10813458]
[1771853931785,0.54054212,80.759,80.737,1.10813458]
[1771853931967,12.38252083,80.759,80.737,1.10813458]
[1771853932970,12.38252083,80.759,80.738,12.38574153]
[1771853933175,3.85609128,80.76,80.739,1.10813458]
[1771853933373,16.23846622,80.76,80.739,1.10813458]
[1771853934081,16.23846622,80.76,80.685,6.2]
[1771853934082,3.85609128,80.75,80.733,1.10813458]
[1771853934254,0.51459685,80.755,80.733,1.10813458]
[1771853934573,3.85609128,80.75,80.733,1.10813458]
[1771853936683,12.38405429,80.749,80.733,1.10813458]
[1771853941563,3.85609128,80.78,80.735,1.10813458]
[1771853941763,0.45744295,80.779,80.735,1.10813458]
[1771853945378,3.85609128,80.77,80.736,12.38604835]
[1771853945703,0.42679978,80.793,80.737,1.10813458]
[1771853945873,0.4193577,80.789,80.737,1.10813458]
[1771853946186,0.4193577,80.779,80.737,1.10813458]
[1771853947391,0.4193577,80.779,80.741,1.10813458]
[1771853948085,3.85609128,80.78,80.741,1.10813458]
[1771853949992,3.85609128,80.78,80.743,1.10813458]
[1771853951881,4.23255758,80.78,80.745,1.10813458]
[1771853952273,0.3764663,80.778,80.745,1.10813458]
[1771853952468,3.85609128,80.77,80.745,1.10813458]
[1771853952795,0.3764663,80.773,80.745,1.10813458]
[1771853953295,0.36960234,80.786,80.745,1.10813458]
[1771853953968,12.37853561,80.785,80.746,43.3458004]
[1771853954189,12.74135284,80.785,80.747,1.10813458]
[1771853955676,12.74135284,80.785,80.749,1.10813458]
[1771853958708,0.31745415,80.789,80.751,0.94914833]
[1771853959701,3.85609128,80.79,80.751,0.94914833]
[1771853960082,4.16735929,80.79,80.751,0.94914833]
[1771853960675,12.68919074,80.789,80.753,0.9761024]
[1771853962704,0.29910807,80.788,80.755,0.9761024]
[1771853964493,0.28722587,80.786,80.757,0.9761024]
[1771853966403,3.85791991,80.79,80.759,0.9761024]
[1771853966598,12.37685033,80.796,80.759,0.9761024]
[1771853966781,30.93650043,80.811,80.761,3.69383402]
[1771853966983,0.26990947,80.809,80.763,0.9761024]
[1771853967693,3.85791991,80.8,80.763,0.9761024]
[1771853967895,0.26426943,80.799,80.763,0.9761024]
[1771853968092,0.95852881,80.779,80.688,49.57332349]
[1771853968404,0.95852881,80.779,80.721,105.30097494]
[1771853968707,0.95852881,80.777,80.728,3.69383402]
[1771853970200,0.95852881,80.777,80.729,0.9761024]
[1771853970808,0.95852881,80.777,80.734,0.9761024]
[1771853971107,0.95852881,80.783,80.734,0.9761024]
[1771853973311,0.95852881,80.781,80.739,0.9761024]
[1771853975204,3.85791991,80.79,80.738,3.69383402]
[1771853975205,0.95852881,80.787,80.741,0.9761024]
[1771853975410,3.85791991,80.81,80.744,0.9761024]
[1771853975605,0.95852881,80.809,80.744,0.9761024]
[1771853976106,0.95852881,80.809,80.746,0.9761024]
[1771853976312,0.95852881,80.789,80.748,0.9761024]
[1771853976499,0.95852881,80.779,80.748,0.9761024]
[1771853977406,0.95852881,80.779,80.74,43.34902154]
[1771853977407,0.95852881,80.779,80.75,0.9761024]
[1771853977706,0.95852881,80.789,80.75,0.9761024]
[1771853978113,13.33645154,80.789,80.75,0.9761024]
[1771853978289,0.95852881,80.788,80.75,0.9761024]
[1771853979513,0.95852881,80.788,80.752,0.9761024]
[1771853981016,0.95852881,80.788,80.754,0.9761024]
[1771853981516,0.95852881,80.788,80.756,0.9761024]
[1771853984910,0.95852881,80.788,80.758,0.9761024]
[1771853986613,0.95852881,80.803,80.761,0.9761024]
[1771853987007,0.95852881,80.802,80.763,0.9761024]
[1771853990712,0.8258261,80.8,80.765,43.33560329]
[1771853990920,0.8258261,80.8,80.767,0.87968496]
[1771853992418,0.8258261,80.798,80.769,0.87968496]
[1771853995217,0.8258261,80.798,80.77,12.38083446]
[1771853998025,12.37669715,80.797,80.77,12.38083446]
[1771853998231,0.8258261,80.796,80.77,12.38083446]
[1771854000635,0.8258261,80.809,80.771,0.87968496]
[1771854001718,0.8258261,80.816,80.774,0.87968496]
[1771854002346,0.8258261,80.816,80.775,43.33023831]
[1771854002627,0.8258261,80.816,80.779,0.87968496]
[1771854003733,6.51745624,80.86,80.782,0.87968496]
[1771854003734,3.85791991,80.84,80.782,0.87968496]
[1771854004033,16.2265037,80.85,80.784,0.87968496]
[1771854004235,3.85791991,80.83,80.784,0.87968496]
[1771854004435,3.85791991,80.84,80.771,30.95136341]
[1771854004734,3.85791991,80.81,80.773,0.87968496]
[1771854005328,3.85791991,80.82,80.773,0.87968496]
[1771854005526,3.85791991,80.82,80.748,3.69383402]
[1771854005527,0.22913085,80.817,80.775,0.87968496]
[1771854007634,0.22913085,80.817,80.774,43.33077474]
[1771854007635,0.22134641,80.809,80.777,0.87968496]
[1771854008313,61.82949959,80.868,80.78,0.87968496]
[1771854008635,3.85791991,80.84,80.78,0.87968496]
[1771854009611,12.37026682,80.839,80.785,0.87968496]
[1771854011118,12.36720711,80.859,80.79,0.87968496]
[1771854011635,12.36720711,80.859,80.795,0.87968496]
[1771854013136,0.1,80.86,80.797,0.87968496]
[1771854013315,0.1,80.86,80.806,0.87968496]
[1771854013521,0.1,80.87,80.808,0.87968496]
[1771854013715,0.1,80.87,80.814,3.69383402]
[1771854014034,3.95791991,80.87,80.815,0.87968496]
[1771854015641,0.1,80.87,80.82,0.87968496]
[1771854017628,0.1,80.87,80.825,0.86133228]
[1771854017940,0.1,80.88,80.827,0.86133228]
[1771854018839,3.85791991,80.86,80.822,0.86133228]
[1771854019223,3.85791991,80.86,80.825,0.86133228]
[1771854020125,3.95791991,80.88,80.825,0.86133228]
[1771854020447,3.85791991,80.87,80.83,0.86133228]
[1771854021318,12.36414891,80.879,80.83,0.86133228]
[1771854022365,12.36414891,80.879,80.832,0.86133228]
[1771854025259,3.94890591,80.88,80.833,43.29914761]
[1771854025543,3.94890591,80.88,80.834,0.86133228]
[1771854026138,0.1,80.88,80.837,0.86133228]
[1771854026440,3.94890591,80.88,80.837,0.86133228]
[1771854028467,0.1,80.88,80.842,0.86133228]
[1771854028634,3.94890591,80.88,80.842,0.86133228]
[1771854032731,0.1,80.88,80.844,0.86133228]
[1771854032932,3.94890591,80.88,80.844,0.86133228]
[1771854037745,3.84890591,80.86,80.832,30.92830741]
[1771854037946,3.84890591,80.86,80.833,12.37118503]
[1771854038750,12.36414891,80.879,80.834,0.86133228]
[1771854039838,12.36414891,80.879,80.836,0.86133228]
[1771854040153,43.27452119,80.879,80.836,0.86133228]
[1771854041959,3.94890591,80.88,80.838,0.86133228]
[1771854044158,3.84890591,80.87,80.84,0.86133228]
[1771854044336,3.94890591,80.88,80.84,0.86133228]
[1771854046155,12.36414891,80.879,80.841,43.29486274]
[1771854046460,12.36414891,80.879,80.842,0.86133228]
[1771854046961,0.1,80.88,80.842,0.86133228]
[1771854047345,12.46401021,80.88,80.842,0.86133228]
[1771854048342,0.1,80.88,80.844,0.86133228]
[1771854049759,0.1,80.88,80.846,0.86133228]
[1771854052409,0.1,80.88,80.848,0.86133228]
[1771854056571,0.1,80.88,80.85,0.86133228]
[1771854059461,0.1,80.88,80.833,3.69383402]
[1771854059462,0.1,80.88,80.852,0.86133228]
[1771854059655,0.1,80.88,80.854,0.86133228]
[1771854061676,0.1,80.88,80.856,0.86133228]
[1771854064072,0.1,80.88,80.858,0.86133228]
[1771854066175,0.1,80.88,80.86,0.86133228]
[1771854068581,0.1,80.88,80.862,0.86133228]
[1771854069161,3.84890591,80.87,80.845,0.86133228]
[1771854069466,3.94890591,80.88,80.845,0.86133228]
[1771854069987,3.84890591,80.87,80.845,0.86133228]
[1771854070587,3.84890591,80.87,80.84,0.86133228]
[1771854071378,12.36567782,80.869,80.841,12.36996078]
[1771854071580,12.36567782,80.869,80.842,0.86133228]
[1771854071964,12.36461643,80.876,80.842,0.86133228]
[1771854077192,12.36414891,80.879,80.844,0.86133228]
[1771854078593,12.36414891,80.879,80.844,7.06133228]
[1771854078892,12.36414891,80.879,80.845,0.86133228]
[1771854081687,43.27452119,80.879,80.845,0.86133228]
[1771854081893,3.84890591,80.87,80.843,12.36965476]
[1771854082411,3.84890591,80.87,80.844,0.86133228]
[1771854084506,12.36567782,80.869,80.839,0.86133228]
[1771854084799,12.36567782,80.869,80.832,0.86133228]
[1771854085381,3.85033466,80.87,80.834,0.86133228]
[1771854088705,12.36567782,80.869,80.836,0.86133228]
[1771854090988,12.36567782,80.869,80.82,3.69383402]
[1771854090989,43.27987238,80.869,80.82,3.69383402]
[1771854091188,3.85033466,80.86,80.821,0.86133228]
[1771854091392,3.85033466,80.85,80.821,0.86133228]
[1771854093195,12.36873678,80.849,80.821,0.86133228]
[1771854094106,43.29057873,80.849,80.821,0.86133228]
[1771854097092,12.36873678,80.849,80.823,0.86133228]
[1771854101116,3.85033466,80.86,80.825,0.86133228]
[1771854103019,0.1,80.91,80.828,0.81133228]
[1771854103214,0.1,80.91,80.834,0.81133228]
[1771854103416,0.1,80.91,80.839,0.81133228]
[1771854103596,0.1,80.91,80.844,0.81133228]
[1771854103910,0.1,80.91,80.849,0.81133228]
[1771854104712,0.1,80.91,80.854,0.81133228]
[1771854105013,0.1,80.91,80.855,0.81133228]
[1771854105216,0.1,80.92,80.858,0.76133228]
[1771854105414,0.1,80.92,80.861,3.69383402]
[1771854105612,0.1,80.92,80.862,3.69383402]
[1771854105914,0.1,80.92,80.863,0.76133228]
[1771854106311,0.1,80.94,80.864,0.76133228]
[1771854106515,0.1,80.94,80.868,0.76133228]
[1771854106712,0.1,80.94,80.873,0.76133228]
[1771854106914,3.95033466,80.94,80.873,0.76133228]
[1771854107113,3.85033466,80.93,80.873,0.76133228]
[1771854107999,3.85033466,80.93,80.873,4.4551663]
[1771854108202,3.85033466,80.92,80.874,0.76133228]
[1771854109923,3.85033466,80.92,80.879,0.76133228]
[1771854110620,3.85033466,80.93,80.879,0.76133228]
[1771854112121,3.85033466,80.93,80.884,0.76133228]
[1771854112318,12.35651002,80.929,80.884,0.76133228]
[1771854113732,3.85033466,80.92,80.889,0.76133228]
[1771854114709,0.1,80.94,80.89,12.36246754]
[1771854115029,3.85033466,80.92,80.892,0.76133228]
[1771854115205,3.85033466,80.92,80.894,0.76133228]
[1771854115724,0.6588042,80.899,80.846,6.2]
[1771854116025,0.6588042,80.899,80.855,3.69383402]
[1771854117723,0.6588042,80.899,80.861,0.73322385]
[1771854119219,0.6551005,80.889,80.861,0.73322385]
[1771854119599,0.6551005,80.889,80.862,12.36674828]
[1771854119829,0.6551005,80.889,80.862,13.09997213]
[1771854120024,0.6551005,80.889,80.863,0.73322385]
[1771854122627,0.6551005,80.889,80.865,0.73322385]
[1771854124122,0.64578334,80.879,80.864,12.36644242]
[1771854124429,0.64578334,80.879,80.854,0.73322385]
[1771854124628,0.64578334,80.879,80.855,12.36781893]
[1771854126530,0.64578334,80.879,80.855,44.02059011]
[1771854126928,0.64578334,80.879,80.856,0.73322385]
[1771854127129,0.63972049,80.884,80.856,0.73322385]
[1771854129529,0.63579377,80.869,80.846,0.73322385]
[1771854129914,0.63579377,80.869,80.842,30.92437858]
[1771854129915,3.85033466,80.86,80.842,30.92437858]
[1771854130132,3.85033466,80.86,80.843,12.36965476]
[1771854130133,0.63386417,80.859,80.843,12.36965476]
[1771854130724,0.63386417,80.859,80.837,0.73322385]
[1771854130725,0.63195673,80.859,80.837,0.73322385]
[1771854131034,0.63195673,80.859,80.81,13.65104429]
[1771854131035,0.7215775,80.849,80.771,43.33238414]
[1771854131212,0.7215775,80.804,80.771,43.33238414]
[1771854131416,3.85033466,80.79,80.771,43.33238414]
[1771854133317,10.33234914,80.79,80.771,43.33238414]
[1771854133840,0.7215775,80.793,80.771,43.33238414]
[1771854134136,10.33234914,80.79,80.771,43.33238414]
[1771854134339,0.7215775,80.789,80.771,12.38068118]
[1771854135740,10.33234914,80.8,80.772,0.73322385]
[1771854136521,10.33234914,80.79,80.771,12.38068118]
[1771854138437,0.62446471,80.791,80.771,12.38068118]
[1771854140321,0.60528993,80.797,80.774,0.67075468]
[1771854141646,10.33234914,80.81,80.774,0.67075468]
[1771854142143,0.59651701,80.809,80.774,0.67075468]
[1771854142357,10.33234914,80.8,80.776,0.67075468]
[1771854144846,0.58373191,80.799,80.777,13.05051624]
[1771854145720,0.57956774,80.824,80.778,0.67075468]
[1771854145919,0.57956774,80.819,80.778,0.67075468]
[1771854147239,0.57956774,80.819,80.78,0.67075468]
[1771854148633,10.32644795,80.81,80.78,0.67075468]
[1771854148953,10.89380794,80.81,80.782,0.67075468]
[1771854149153,0.56735999,80.809,80.782,0.67075468]
[1771854149838,0.56735999,80.809,80.784,0.67075468]
[1771854151152,0.5594534,80.809,80.785,12.37853561]
[1771854152359,0.5594534,80.809,80.786,0.67075468]
[1771854152560,0.55556809,80.819,80.788,0.67075468]
[1771854153149,0.55556809,80.819,80.789,43.32272957]
[1771854153453,3.85458895,80.82,80.79,0.67075468]
[1771854153651,0.5517274,80.824,80.79,0.67075468]
[1771854153847,3.85458895,80.82,80.79,0.67075468]
[1771854156059,4.39505695,80.82,80.792,0.67075468]
[1771854156956,4.3913897,80.82,80.792,0.67075468]
[1771854157555,0.53680075,80.842,80.793,0.67075468]
[1771854157738,3.85458895,80.84,80.798,0.67075468]
[1771854157931,0.53317562,80.849,80.798,0.67075468]
[1771854158137,0.53317562,80.849,80.803,0.67075468]
[1771854159539,0.53317562,80.849,80.808,0.67075468]
[1771854160051,3.85458895,80.85,80.808,0.67075468]
[1771854160258,4.38063875,80.85,80.808,0.67075468]
[1771854160446,0.5260498,80.849,80.808,0.67075468]
[1771854161232,3.85458895,80.83,80.808,0.67075468]
[1771854163134,0.52254816,80.832,80.81,0.67075468]
[1771854164254,0.51228271,80.829,80.81,0.67075468]
[1771854165038,4.36352815,80.84,80.812,0.67075468]
[1771854165345,0.5089392,80.858,80.817,0.67075468]
[1771854165539,0.5089392,80.858,80.819,0.67075468]
[1771854165734,3.85458895,80.87,80.819,0.67075468]
[1771854165939,0.50563409,80.869,80.819,0.67075468]
[1771854166145,0.50563409,80.868,80.819,0.67075468]
[1771854166941,10.0946003,80.902,80.819,0.67075468]
[1771854166942,3.85458895,80.89,80.819,0.67075468]
[1771854167150,0.50236694,80.887,80.824,0.67075468]
[1771854167343,3.85458895,80.88,80.824,0.67075468]
[1771854167537,0.50236694,80.879,80.824,0.67075468]
[1771854168361,3.85458895,80.9,80.824,0.67075468]
[1771854168656,0.49594479,80.879,80.824,0.67075468]
[1771854171164,0.49594479,80.879,80.829,0.60173747]
[1771854172150,0.49594479,80.879,80.834,0.60173747]
[1771854172537,0.4835372,80.889,80.834,0.60173747]
[1771854172949,0.1,80.92,80.844,5.36086188]
[1771854173148,0.1,80.92,80.84,37.21]
[1771854173149,0.1,80.92,80.894,3.69383402]
[1771854173345,0.1,80.92,80.898,3.69383402]
[1771854173564,0.1,80.92,80.899,34.77028601]
[1771854174074,0.1,80.92,80.894,3.69383402]
[1771854174369,0.47754512,80.919,80.891,43.10734657]
[1771854174967,0.1,80.92,80.891,43.10734657]
[1771854175350,0.1,80.92,80.869,98.92525218]
[1771854175658,0.1,80.92,80.869,117.85188909]
[1771854175856,0.1,80.92,80.87,1.23655249]
[1771854176168,0.1,80.92,80.873,3.69383402]
[1771854176343,0.1,80.92,80.875,0.60173747]
[1771854176540,0.1,80.92,80.874,23.85696226]
[1771854176541,0.1,80.92,80.879,3.69383402]
[1771854176745,0.1,80.92,80.88,0.60173747]
[1771854179068,0.1,80.95,80.885,0.60173747]
[1771854179270,0.1,80.95,80.884,3.69383402]
[1771854179271,1e-08,80.98,80.89,3.69383402]
[1771854179574,12.33562776,81.066,80.909,5.64518502]
[1771854179879,0.62520227,81.055,81.001,3.69383402]
[1771854180056,0.62520227,81.048,80.92,0.28432314]
[1771854180255,4.47979122,81.03,80.944,0.60173747]
[1771854180456,0.62520227,81.048,80.96,0.60173747]
[1771854180766,3.85458895,81.03,80.965,0.60173747]
[1771854180966,3.85458895,81.03,80.911,1.23592589]
[1771854180967,3.85458895,81.05,80.973,0.60173747]
[1771854181171,3.85458895,81.05,80.978,0.60173747]
[1771854181349,10.2660825,81.06,80.978,0.60173747]
[1771854181551,30.82326628,81.108,80.992,0.60173747]
[1771854181754,30.81770432,81.123,81.002,0.60173747]